bitfinex-derivatives/quotes_SOLF0:USTF0_20240905
["timestamp","ask_amount","ask_price","bid_price","bid_amount"]
[1725568089622,3.93942497,128.71,128.69,0.04973436]
[1725568090223,3.8855,128.7,128.69,0.04973436]
[1725568090420,0.05402497,128.71,128.69,3.93553436]
[1725568091318,3.93942497,128.71,128.69,3.93553436]
[1725568091822,0.05402497,128.71,128.69,0.04973436]
[1725568092222,3.8855,128.7,128.69,0.04973436]
[1725568101936,14.6455,128.7,128.69,0.04973436]
[1725568107643,0.05402497,128.71,128.69,10.80973436]
[1725568107834,0.05402497,128.71,128.69,12.16833436]
[1725568108843,0.05402497,128.71,128.69,16.05403436]
[1725568110244,0.05402497,128.71,128.7,3.8855]
[1725568112648,0.05402497,128.71,128.7,5.1944]
[1725568113346,0.05402497,128.71,128.7,1.3089]
[1725568113538,0.05402497,128.71,128.69,1.40833436]
[1725568113746,3.8855,128.7,128.69,1.40833436]
[1725568114344,3.8855,128.7,128.69,0.04973436]
[1725568124465,3.8855,128.7,128.65,12.0689]
[1725568124466,10.76,128.7,128.63,1.3442]
[1725568124652,10.76,128.67,128.63,1.3442]
[1725568125157,3.93338389,128.66,128.63,1.3442]
[1725568125562,0.05955294,128.66,128.63,1.39844424]
[1725568126054,3.8873,128.65,128.63,1.39844424]
[1725568128254,3.89535065,128.66,128.63,1.39844424]
[1725568128255,3.8873,128.64,128.63,1.39844424]
[1725568133267,3.8872,128.65,128.63,5.28614424]
[1725568133463,0.05955294,128.66,128.63,12.15844424]
[1725568134369,3.94635294,128.66,128.64,3.8872]
[1725568134667,3.94635294,128.66,128.63,12.15844424]
[1725568135066,3.94635294,128.66,128.64,3.8873]
[1725568136273,3.94282418,128.66,128.63,1.39844424]
[1725568136767,14.6473,128.64,128.63,0.05424424]
[1725568138769,3.8885,128.61,128.58,2.693]
[1725568139265,10.76,128.62,128.58,2.693]
[1725568139465,10.76,128.62,128.58,1.3443]
[1725568139665,0.0592873,128.61,128.59,0.05331757]
[1725568140471,14.6486,128.6,128.59,0.05331757]
[1725568140767,14.6486,128.6,128.58,1.3443]
[1725568140768,10.76,128.6,128.43,50.8269]
[1725568140973,10.76,128.56,128.51,1.4392]
[1725568141474,10.76,128.54,128.51,1.4392]
[1725568141864,10.76,128.54,128.51,1.49063005]
[1725568141865,3.94594655,128.53,128.51,1.49063005]
[1725568142271,7.83674655,128.53,128.51,1.49063005]
[1725568142472,0.05744954,128.54,128.51,1.49063005]
[1725568142867,3.94784954,128.54,128.51,1.49063005]
[1725568144371,3.94784954,128.54,128.51,5.38183005]
[1725568144763,3.94784954,128.54,128.51,1.49063005]
[1725568145672,3.94784954,128.54,128.51,5.38183005]
[1725568147977,3.8908,128.53,128.51,1.49063005]
[1725568150279,3.94794954,128.54,128.51,5.38183005]
[1725568151167,0.05744954,128.54,128.52,3.8908]
[1725568156080,0.05744954,128.54,128.53,3.8907]
[1725568160886,0.05744954,128.54,128.52,3.8908]
[1725568161179,0.05744954,128.54,128.51,2.90033005]
[1725568161383,0.05744954,128.54,128.53,3.8907]
[1725568163490,3.9238795,128.58,128.51,6.85901056]
[1725568163789,26.91,128.59,128.51,6.85901056]
[1725568163986,26.91,128.59,128.51,6.80758051]
[1725568164189,30.89903611,128.59,128.52,3.8907]
[1725568164389,3.8903,128.55,128.54,0.04925631]
[1725568167482,14.70887778,128.57,128.55,3.89]
[1725568167683,0.04927778,128.57,128.54,0.04925631]
[1725568168084,3.8899,128.56,128.54,3.93955631]
[1725568170596,3.93887778,128.57,128.55,3.8901]
[1725568171691,0.04927778,128.57,128.56,3.8898]
[1725568172402,0.04927778,128.57,128.56,5.3306]
[1725568172590,106.82071876,128.61,128.56,12.2108]
[1725568172794,3.8886,128.6,128.56,12.2108]
[1725568172994,106.82071876,128.61,128.56,12.2108]
[1725568173698,0.05087025,128.6,128.58,3.889]
[1725568174994,0.05087025,128.6,128.59,3.8889]
[1725568182511,0.05087025,128.6,128.57,1.43029198]
[1725568183015,3.93957025,128.6,128.58,3.8889]
[1725568183209,0.05087025,128.6,128.58,3.8889]
[1725568183610,3.93947025,128.6,128.58,3.8889]
[1725568185914,3.889,128.59,128.57,5.31969198]
[1725568186436,3.889,128.59,128.57,3.94429198]
[1725568186811,0.05087025,128.6,128.57,0.05489198]
[1725568187513,3.8889,128.59,128.57,3.94419198]
[1725568189414,3.93947025,128.6,128.58,3.889]
[1725568191414,3.8889,128.59,128.57,3.94419198]
[1725568192920,3.8892,128.58,128.57,0.05489198]
[1725568197216,3.889,128.59,128.57,3.94439198]
[1725568200223,0.05087025,128.6,128.57,0.05489198]
[1725568200425,0.05087025,128.6,128.57,10.82489198]
[1725568200619,0.05087025,128.6,128.58,1.4515]
[1725568202223,3.93957025,128.6,128.58,5.3405]
[1725568202828,0.05087025,128.6,128.59,3.8889]
[1725568203421,0.05087025,128.6,128.59,14.6589]
[1725568207023,3.8879,128.63,128.61,3.8881]
[1725568207725,10.77,128.68,128.61,10.77]
[1725568207924,0.05423483,128.66,128.63,0.05743504]
[1725568208525,3.94123483,128.66,128.63,3.94493504]
[1725568208923,0.05423483,128.66,128.63,3.94493504]
[1725568209129,3.94113483,128.66,128.64,3.8873]
[1725568209329,0.05423483,128.66,128.64,3.8873]
[1725568209924,0.05423483,128.66,128.64,5.2402]
[1725568210631,3.94113483,128.66,128.64,5.2402]
[1725568211030,0.05423483,128.66,128.63,0.05743504]
[1725568212423,3.8872,128.65,128.63,3.94503504]
[1725568213932,0.05423483,128.66,128.64,3.8872]
[1725568214431,0.05423483,128.66,128.65,3.887]
[1725568219740,0.05423483,128.66,128.64,3.8873]
[1725568220642,3.94113483,128.66,128.64,3.8873]
[1725568222242,3.94113483,128.66,128.63,3.94493504]
[1725568223241,3.94113483,128.66,128.64,3.8873]
[1725568223650,3.89326566,128.66,128.63,0.05743504]
[1725568224045,3.8872,128.65,128.63,0.05743504]
[1725568225041,3.8872,128.65,128.63,3.94503504]
[1725568225844,3.8873,128.64,128.63,0.05743504]
[1725568227150,14.6573,128.64,128.63,0.05743504]
[1725568231549,3.8873,128.64,128.63,0.05743504]
[1725568236054,14.6573,128.64,128.63,0.05743504]
[1725568240163,3.8873,128.64,128.63,0.05743504]
[1725568246665,3.8872,128.65,128.63,0.05743504]
[1725568249373,3.8873,128.64,128.63,0.05743504]
[1725568250666,14.6573,128.64,128.63,0.05743504]
[1725568260177,3.8873,128.64,128.63,0.05743504]
[1725568260779,3.8893,128.58,128.56,1.3876]
[1725568260980,10.77,128.6,128.56,1.3876]
[1725568261367,3.8895,128.57,128.56,1.3876]
[1725568262174,7.72450809,128.57,128.56,1.3876]
[1725568263681,3.8898,128.56,128.55,1.51176348]
[1725568264980,14.6598,128.56,128.55,0.05786348]
[1725568265892,34.14,128.56,128.47,1.343]
[1725568266181,34.14,128.56,128.17,10.81667395]
[1725568266182,10.77,128.48,128.35,9.08010866]
[1725568266380,10.77,128.43,128.36,2.77201334]
[1725568266581,10.77,128.43,128.36,15.74887358]
[1725568266772,0.05028284,128.41,128.38,0.05166366]
[1725568267174,3.95495466,128.41,128.38,0.05166366]
[1725568267378,0.05028284,128.41,128.38,0.05166366]
[1725568269181,0.05028284,128.41,128.39,3.8947]
[1725568271793,0.05028284,128.41,128.38,3.94666366]
[1725568272296,3.94488284,128.41,128.38,0.05166366]
[1725568272980,3.94488284,128.41,128.38,3.94686366]
[1725568274181,0.05028284,128.41,128.39,3.8949]
[1725568274396,0.05028284,128.41,128.39,1.4174]
[1725568275481,0.05028284,128.41,128.39,5.3122]
[1725568276992,26.93,128.46,128.39,1.4174]
[1725568276993,7.86422703,128.45,128.39,1.4174]
[1725568277193,3.97102703,128.45,128.4,1.4182]
[1725568277393,1.0,128.47,128.41,3.8941]
[1725568277591,3.8933,128.45,128.4,1.4182]
[1725568277992,0.0514985,128.44,128.42,3.8938]
[1725568278997,3.9448985,128.44,128.42,3.8938]
[1725568279995,3.9448985,128.44,128.41,3.95012862]
[1725568280191,3.8937,128.43,128.41,0.05602862]
[1725568284608,3.894,128.42,128.41,0.05602862]
[1725568286999,3.8939,128.43,128.41,0.05602862]
[1725568287493,26.9814985,128.44,128.41,0.05602862]
[1725568288302,3.894,128.42,128.41,0.05602862]
[1725568289102,3.8939,128.43,128.41,0.05602862]
[1725568289497,0.0514985,128.44,128.41,0.05602862]
[1725568289800,3.894,128.42,128.41,0.05602862]
[1725568310418,3.8939,128.43,128.41,0.05602862]
[1725568310615,0.0514985,128.44,128.43,3.8937]
[1725568310920,0.0514985,128.44,128.42,10.77]
[1725568310921,4.8925,128.47,128.42,12.1842]
[1725568311114,8.87754741,128.47,128.42,12.1842]
[1725568311308,4.98504741,128.47,128.43,3.8934]
[1725568311513,3.893,128.46,128.42,12.1842]
[1725568311917,0.05223977,128.45,128.43,3.94411529]
[1725568312415,0.05223977,128.45,128.43,3.94401529]
[1725568315118,3.94533977,128.45,128.43,3.94401529]
[1725568315318,10.82223977,128.45,128.43,0.05051529]
[1725568315515,10.77,128.44,128.43,0.05051529]
[1725568315722,14.6634,128.44,128.43,0.05051529]
[1725568321529,14.6634,128.44,128.4,1.3416]
[1725568321530,3.8943,128.41,128.4,1.3416]
[1725568322231,3.8946,128.4,128.39,1.4174]
[1725568322631,10.82224931,128.41,128.38,0.05097002]
[1725568322926,14.6649,128.39,128.38,0.05097002]
[1725568323130,18.5754388,128.39,128.38,0.05097002]
[1725568326033,19.5754388,128.39,128.38,0.05097002]
[1725568326327,3.896,128.36,128.33,6.7313]
[1725568326938,4.9105388,128.39,128.34,10.77]
[1725568327334,0.05765317,128.38,128.35,3.95369844]
[1725568328138,3.95295317,128.38,128.35,3.95369844]
[1725568331142,3.95295317,128.38,128.36,3.8957]
[1725568331345,0.05765317,128.38,128.36,3.8957]
[1725568331643,10.77,128.42,128.38,3.895]
[1725568331951,3.8945,128.41,128.39,2.8443]
[1725568332343,3.8942,128.42,128.39,2.8443]
[1725568332536,0.05244082,128.42,128.39,2.89660385]
[1725568333045,3.94654082,128.42,128.39,6.79140385]
[1725568334548,3.94654082,128.42,128.4,3.8945]
[1725568334948,0.05244082,128.42,128.39,2.89660385]
[1725568335148,0.05244082,128.42,128.41,3.8943]
[1725568335449,10.77,128.45,128.39,13.6143]
[1725568335950,917.0033978,128.47,128.4,10.77]
[1725568336550,0.05894888,128.45,128.42,0.05335486]
[1725568336752,0.05894888,128.45,128.42,10.82335486]
[1725568336941,0.05894888,128.45,128.43,3.8937]
[1725568337471,913.20552,128.47,128.46,3.8928]
[1725568337748,900.10942,128.47,128.46,3.8928]
[1725568337955,893.56102,128.47,128.46,3.8928]
[1725568340852,891.37832,128.47,128.46,3.8928]
[1725568341944,889.19562,128.47,128.46,3.8928]
[1725568342152,887.01292,128.47,128.46,3.8928]
[1725568346354,881.78372,128.47,128.46,3.8928]
[1725568348360,881.78372,128.47,128.45,3.94149982]
[1725568348361,881.78372,128.47,128.45,0.05469006]
[1725568349153,881.78372,128.47,128.45,3.94759006]
[1725568349351,885.67632,128.47,128.45,3.94759006]
[1725568350260,885.67632,128.47,128.45,0.05469006]
[1725568351059,885.67632,128.47,128.45,3.94779006]
[1725568352954,881.78372,128.47,128.45,3.94779006]
[1725568353466,881.78372,128.47,128.46,3.8928]
[1725568359476,885.67622,128.47,128.45,3.94769006]
[1725568362962,881.78372,128.47,128.45,3.94769006]
[1725568363970,881.78372,128.47,128.46,3.8928]
[1725568364367,881.78372,128.47,128.46,14.6728]
[1725568364967,774.99372,128.47,128.46,14.6728]
[1725568367061,774.99372,128.47,128.46,3.8928]
[1725568372968,778.88632,128.47,128.45,3.94759006]
[1725568373168,774.99372,128.47,128.45,3.94759006]
[1725568374276,778.88622,128.47,128.45,3.94759006]
[1725568374973,774.99372,128.47,128.46,3.8928]
[1725568381372,774.99372,128.47,128.45,0.05469006]
[1725568381577,778.96477022,128.47,128.45,0.05469006]
[1725568382472,3.8928,128.46,128.45,0.05469006]
[1725568383180,3.8933,128.45,128.4,26.93]
[1725568383482,778.96477022,128.47,128.4,26.93]
[1725568383685,3.8937,128.43,128.41,3.8942]
[1725568383879,26.93,128.46,128.36,26.93]
[1725568384182,1.3962,128.42,128.4,0.05968902]
[1725568384383,5.2904,128.42,128.4,3.95428902]
[1725568384774,1.3962,128.42,128.4,3.95428902]
[1725568385005,1.3962,128.42,128.41,3.8943]
[1725568387478,0.05488451,128.43,128.42,3.894]
[1725568388186,0.05488451,128.43,128.42,14.674]
[1725568390383,1.3963,128.46,128.45,3.8931]
[1725568390589,1.3963,128.46,128.45,14.6731]
[1725568391090,1.3963,128.46,128.45,3.8931]
[1725568393890,774.99372,128.47,128.46,3.8928]
[1725568394286,774.99372,128.47,128.46,14.6728]
[1725568401215,774.99372,128.47,128.39,44.4618]
[1725568401216,789.74243385,128.47,128.34,7.7929]
[1725568401517,789.74243385,128.47,128.39,2.77116643]
[1725568401518,10.78,128.45,128.39,2.77116643]
[1725568401705,3.8934,128.44,128.4,3.8945]
[1725568402013,5.3461,128.44,128.4,3.8945]
[1725568402409,0.05059889,128.43,128.41,0.05385339]
[1725568406820,3.94429889,128.43,128.41,0.05385339]
[1725568415125,10.83059889,128.43,128.38,3.86469239]
[1725568415330,0.05059889,128.43,128.31,9.09121]
[1725568415531,10.78,128.39,128.32,24.2041653]
[1725568415733,3.8963,128.35,128.31,3.8971]
[1725568416043,12.1282,128.38,128.28,91.3434845]
[1725568416044,10.78,128.36,128.28,91.3434845]
[1725568416222,0.05197611,128.33,128.31,0.04958477]
[1725568416419,3.95523055,128.33,128.31,0.04958477]
[1725568418326,0.05853055,128.33,128.31,0.04958477]
[1725568418829,3.95533055,128.33,128.29,3.8977]
[1725568419029,1.3755,128.32,128.25,26.96]
[1725568419331,2.6975,128.32,128.26,3.80104069]
[1725568419625,6.5947,128.32,128.28,3.8981]
[1725568419828,0.05888598,128.31,128.29,0.05453012]
[1725568421330,0.05888598,128.31,128.29,3.95243012]
[1725568421728,0.05888598,128.31,128.29,27.01453012]
[1725568422730,0.05888598,128.31,128.3,3.8977]
[1725568423835,0.05888598,128.31,128.29,30.91233012]
[1725568424036,0.05888598,128.31,128.29,3.95233012]
[1725568425536,0.05888598,128.31,128.3,3.8977]
[1725568444739,0.05888598,128.31,128.3,14.6777]
[1725568444935,1.4379,128.37,128.3,10.78]
[1725568445140,1.4379,128.37,128.34,10.78]
[1725568445544,1.4379,128.37,128.35,3.896]
[1725568445945,1.49363899,128.37,128.35,3.9517352]
[1725568446850,1.49363899,128.37,128.35,3.9518352]
[1725568447444,1.49363899,128.37,128.36,3.8958]
[1725568450344,1.49363899,128.37,128.35,3.9517352]
[1725568452441,1.49363899,128.37,128.35,0.0557352]
[1725568453041,3.8958,128.36,128.35,0.0557352]
[1725568453451,1.49363899,128.37,128.35,0.0557352]
[1725568453651,5.38933899,128.37,128.35,0.0557352]
[1725568458550,5.38933899,128.37,128.31,3.8972]
[1725568458551,10.78,128.36,128.31,3.8972]
[1725568458761,10.78,128.36,128.28,10.78]
[1725568459053,3.896,128.36,128.3,10.78]
[1725568459558,0.05457517,128.34,128.32,0.05795669]
[1725568460255,0.05457517,128.34,128.32,3.95485669]
[1725568464970,0.05457517,128.34,128.32,0.05795669]
[1725568464971,3.8967,128.33,128.32,0.05795669]
[1725568465177,3.8967,128.33,128.27,3.83252748]
[1725568465178,10.78,128.33,128.27,10.78]
[1725568465475,5.2517,128.32,128.27,10.78]
[1725568466070,5.2517,128.32,128.28,3.898]
[1725568466274,0.05402003,128.31,128.29,0.05249355]
[1725568467275,0.05402003,128.31,128.29,3.95039355]
[1725568467475,0.05402003,128.31,128.29,0.05249355]
[1725568472583,0.05402003,128.31,128.29,3.95039355]
[1725568472778,0.05402003,128.31,128.29,10.83249355]
[1725568473480,0.05402003,128.31,128.3,3.8977]
[1725568476281,0.05402003,128.31,128.29,3.95029355]
[1725568483387,0.05402003,128.31,128.29,0.05249355]
[1725568483889,0.05402003,128.31,128.29,3.95029355]
[1725568485991,0.05402003,128.31,128.3,3.8977]
[1725568488189,4.0665,128.36,128.3,10.78]
[1725568488986,7.9625,128.36,128.33,3.8967]
[1725568489187,8.02027797,128.36,128.33,3.95636385]
[1725568489386,8.02027797,128.36,128.33,0.05966385]
[1725568489988,8.02027797,128.36,128.33,3.95626385]
[1725568490891,5.30147797,128.36,128.33,3.95626385]
[1725568491389,1.40547797,128.36,128.34,3.8964]
[1725568492590,5.30137797,128.36,128.33,3.95626385]
[1725568495796,1.40547797,128.36,128.34,3.8963]
[1725568496698,1.40547797,128.36,128.33,0.05966385]
[1725568497199,5.30147797,128.36,128.33,3.95636385]
[1725568498594,3.95377797,128.36,128.33,3.95636385]
[1725568498797,0.05777797,128.36,128.35,3.8961]
[1725568500599,1.4232,128.4,128.39,3.8949]
[1725568501403,1.4232,128.4,128.38,3.8951]
[1725568501594,1.47643793,128.4,128.38,3.95262794]
[1725568503491,0.05323793,128.4,128.39,3.8949]
[1725568503901,0.05323793,128.4,128.39,14.6749]
[1725568504800,0.05323793,128.4,128.39,3.8949]
[1725568508202,0.05323793,128.4,128.38,0.05752794]
[1725568508809,1.45103793,128.4,128.38,0.05752794]
[1725568509404,3.8949,128.39,128.38,0.05752794]
[1725568515014,0.28656057,128.39,128.3,3.42907758]
[1725568515203,10.78,128.36,128.3,3.42907758]
[1725568515407,1.4039,128.38,128.32,3.8968]
[1725568515408,3.8963,128.35,128.32,3.8968]
[1725568516007,3.94647457,128.35,128.32,3.95495542]
[1725568516612,3.94647457,128.35,128.32,0.05815542]
[1725568517209,3.94647457,128.35,128.32,14.73515542]
[1725568517632,3.8965,128.34,128.32,10.83815542]
[1725568518313,3.8965,128.34,128.32,0.05815542]
[1725568520611,3.94647457,128.35,128.32,3.95515542]
[1725568520815,3.94647457,128.35,128.32,0.05815542]
[1725568525216,3.8965,128.34,128.32,0.05815542]
[1725568526324,0.05017457,128.35,128.33,10.78]
[1725568526516,0.05017457,128.35,128.34,10.78]
[1725568527225,0.05017457,128.35,128.33,10.78]
[1725568527413,0.05017457,128.35,128.33,3.8966]
[1725568527928,3.94627457,128.35,128.32,3.95505542]
[1725568530922,0.05017457,128.35,128.32,3.95505542]
[1725568531327,0.05017457,128.35,128.33,3.8967]
[1725568531629,0.05017457,128.35,128.33,10.78]
[1725568532232,0.05017457,128.35,128.34,3.8964]
[1725568533125,0.05017457,128.35,128.33,14.6766]
[1725568533322,0.05017457,128.35,128.33,3.8966]
[1725568534632,0.05017457,128.35,128.32,3.95495542]
[1725568534828,3.94647457,128.35,128.32,3.95495542]
[1725568537239,0.05017457,128.35,128.33,3.8967]
[1725568538241,0.05017457,128.35,128.34,14.6764]
[1725568542439,0.05017457,128.35,128.34,3.8964]
[1725568555844,1.3114,128.39,128.37,3.8953]
[1725568556051,12.01807515,128.44,128.38,10.78]
[1725568556246,1.4449,128.43,128.38,10.78]
[1725568556447,1.4449,128.43,128.39,10.78]
[1725568556948,0.05326952,128.42,128.4,0.05259697]
[1725568557154,0.05326952,128.42,128.4,3.94689697]
[1725568558656,3.88057653,128.41,128.4,3.94689697]
[1725568560951,3.88057653,128.41,128.4,0.05259697]
[1725568562059,0.05326952,128.42,128.4,0.05259697]
[1725568562260,3.94746952,128.42,128.4,0.05259697]
[1725568562653,3.92217723,128.41,128.4,0.05259697]
[1725568563062,3.94746952,128.42,128.4,0.05259697]
[1725568563557,3.8201001,128.41,128.4,0.05259697]
[1725568566959,10.78,128.41,128.26,83.37709067]
[1725568567164,10.78,128.38,128.31,10.78]
[1725568567553,10.78,128.38,128.28,43.12]
[1725568567554,10.78,128.39,128.28,43.12]
[1725568567754,1.4542,128.37,128.31,10.78]
[1725568567956,1.4542,128.37,128.33,0.05141337]
[1725568567957,0.05166794,128.35,128.33,0.05141337]
[1725568580071,3.8964,128.34,128.33,0.05141337]
[1725568588390,3.94796794,128.35,128.33,0.05141337]
[1725568588686,3.8964,128.34,128.33,0.05141337]
[1725568590892,3.94796794,128.35,128.33,0.05141337]
[1725568591689,0.05166794,128.35,128.33,3.94811337]
[1725568592488,0.05166794,128.35,128.34,3.98941725]
[1725568592689,0.05166794,128.35,128.34,14.6764]
[1725568592893,0.05166794,128.35,128.34,18.6003275]
[1725568598196,2.8474,128.42,128.37,3.8955]
[1725568598395,2.8474,128.42,128.37,10.78]
[1725568598794,2.8474,128.42,128.38,3.8951]
[1725568598795,6.7415,128.42,128.38,3.8951]
[1725568599092,0.05753649,128.41,128.39,0.05926235]
[1725568600901,3.95193649,128.41,128.39,0.05926235]
[1725568602992,0.05753649,128.41,128.4,3.8946]
[1725568603195,0.05753649,128.41,128.4,18.49412641]
[1725568604095,2.7305,128.46,128.43,3.8936]
[1725568604497,6.6235,128.46,128.41,10.78]
[1725568604695,13.5105,128.46,128.4,10.78]
[1725568604891,10.78,128.45,128.4,10.78]
[1725568605101,10.78,128.45,128.4,14.73045488]
[1725568605296,0.05292173,128.44,128.41,0.0580806]
[1725568605900,0.05292173,128.44,128.41,3.9522806]
[1725568606802,3.94632173,128.44,128.41,0.0580806]
[1725568608503,3.8938,128.43,128.41,0.0580806]
[1725568613404,0.05292173,128.44,128.41,0.0580806]
[1725568613906,0.05292173,128.44,128.41,3.9522806]
[1725568614504,0.05292173,128.44,128.43,3.8937]
[1725568614811,0.05292173,128.44,128.43,14.6737]
[1725568614997,774.99372,128.47,128.43,10.78]
[1725568615199,774.99372,128.47,128.45,10.78]
[1725568615906,774.99372,128.47,128.45,14.6731]
[1725568616109,774.99372,128.47,128.45,14.72225933]
[1725568618905,774.99372,128.47,128.46,3.8928]
[1725568619606,668.20372,128.47,128.46,3.8928]
[1725568619999,665.00775192,128.47,128.46,3.8928]
[1725568620205,632.09025193,128.47,128.46,3.8928]
[1725568620402,632.09025193,128.47,128.46,7.88003771]
[1725568620706,632.09025193,128.47,128.46,3.8928]
[1725568621108,632.09025193,128.47,128.46,7.84304312]
[1725568621408,632.09025193,128.47,128.46,7.69934836]
[1725568621409,629.09025193,128.47,128.46,7.69934836]
[1725568622104,628.09025193,128.47,128.46,3.8928]
[1725568622303,628.09025193,128.47,128.46,7.79090158]
[1725568622500,545.13025193,128.47,128.46,3.8928]
[1725568623109,521.30025193,128.47,128.46,7.77494012]
[1725568623909,497.47025193,128.47,128.46,7.77494012]
[1725568624307,1.38,128.53,128.49,3.8916]
[1725568624509,1.38,128.53,128.5,10.83772367]
[1725568625013,1.38,128.53,128.51,10.78]
[1725568625913,1.38,128.53,128.5,10.83772367]
[1725568626111,1.38,128.53,128.5,14.72912367]
[1725568630119,822.71343,128.54,128.51,14.6712]
[1725568631011,826.60393,128.54,128.5,14.72912367]
[1725568633210,822.71343,128.54,128.5,0.05772367]
[1725568634121,3.8907,128.53,128.5,0.05772367]
[1725568635319,826.60403,128.54,128.5,3.94912367]
[1725568635517,826.60403,128.54,128.5,14.72912367]
[1725568637723,3.8907,128.53,128.5,14.72912367]
[1725568640219,822.71343,128.54,128.51,10.78]
[1725568640220,826.60393,128.54,128.51,10.78]
[1725568640425,822.71343,128.54,128.53,10.78]
[1725568640822,822.71343,128.54,128.5,10.83772367]
[1725568641021,822.71343,128.54,128.5,0.05772367]
[1725568641523,10.78,128.53,128.5,0.05772367]
[1725568641828,3.8917,128.5,128.46,14.66214012]
[1725568642125,3.8917,128.5,128.46,10.78]
[1725568642626,0.0501114,128.49,128.47,3.97875013]
[1725568642930,0.0501114,128.49,128.47,18.65115013]
[1725568644217,0.0501114,128.49,128.48,14.6722]
[1725568651920,0.0501114,128.49,128.48,3.8922]
[1725568652125,0.0501114,128.49,128.47,14.75875013]
[1725568652328,0.0501114,128.49,128.47,3.97875013]
[1725568652526,0.0501114,128.49,128.47,7.87105013]
[1725568653031,0.0501114,128.49,128.47,18.65105013]
[1725568657834,0.0501114,128.49,128.48,3.8922]
[1725568662335,0.0501114,128.49,128.48,14.6722]
[1725568665638,1.3362,128.54,128.51,3.8912]
[1725568665838,1.3362,128.54,128.51,14.6712]
[1725568666545,1.3362,128.54,128.52,3.8909]
[1725568676359,6.6623,128.55,128.52,3.8909]
[1725568677347,3.89174247,128.54,128.51,0.0578822]
[1725568677554,10.78,128.53,128.47,3.89758066]
[1725568677853,10.78,128.53,128.46,10.78]
[1725568678045,10.78,128.53,128.47,3.88473663]
[1725568678560,0.05877901,128.51,128.49,0.05639017]
[1725568679146,3.8916,128.5,128.49,0.05639017]
[1725568688057,0.05877901,128.51,128.49,0.05639017]
[1725568689566,3.8916,128.5,128.49,0.05639017]
[1725568689963,3.95027901,128.51,128.49,0.05639017]
[1725568692166,3.8916,128.5,128.49,0.05639017]
[1725568692564,1.4478,128.5,128.46,10.78]
[1725568692759,3.8919,128.49,128.46,18.64897193]
[1725568693669,3.8919,128.49,128.46,18.70386895]
[1725568693670,3.94360701,128.49,128.46,18.70386895]
[1725568695572,0.05170701,128.49,128.47,14.6725]
[1725568701079,0.05170701,128.49,128.48,3.8922]
[1725568702778,0.05170701,128.49,128.47,14.6723]
[1725568704788,10.78,128.48,128.34,7.7924]
[1725568704987,10.78,128.48,128.25,205.03064023]
[1725568704988,10.78,128.45,128.4,9.95569488]
[1725568705292,3.8942,128.42,128.38,14.67018561]
[1725568705888,3.95392664,128.42,128.39,72.37654498]
[1725568706087,3.8944,128.41,128.39,0.05889268]
[1725568706294,7.85639813,128.41,128.39,0.05889268]
[1725568707598,3.96199813,128.41,128.39,0.05889268]
[1725568707898,3.95382664,128.42,128.39,0.05889268]
[1725568708298,3.95382664,128.42,128.39,4.05166739]
[1725568708299,3.94096097,128.41,128.39,4.05166739]
[1725568708501,3.95382664,128.42,128.39,10.83889268]
[1725568708698,3.9697823,128.41,128.39,14.6419527]
[1725568708900,3.95382664,128.42,128.39,10.83889268]
[1725568709201,3.93433434,128.41,128.39,14.7136277]
[1725568713300,0.05972664,128.42,128.39,10.83889268]
[1725568713498,0.05972664,128.42,128.39,14.78919808]
[1725568713907,0.05972664,128.42,128.4,3.8945]
[1725568715001,0.05972664,128.42,128.39,7.90399808]
[1725568716706,0.05972664,128.42,128.41,10.78]
[1725568717607,0.05972664,128.42,128.41,14.6743]
[1725568720006,0.05972664,128.42,128.4,14.6745]
[1725568721000,0.05972664,128.42,128.41,3.8943]
[1725568723308,0.05972664,128.42,128.41,14.6743]
[1725568726508,6.66432547,128.48,128.45,3.8931]
[1725568727605,6.71701619,128.48,128.45,3.94591054]
[1725568727806,2.77099072,128.48,128.45,3.94591054]
[1725568728309,2.77099072,128.48,128.45,7.82934688]
[1725568729000,0.05269072,128.48,128.47,10.78]
[1725568729206,0.05269072,128.48,128.47,14.74871385]
[1725568730408,0.05269072,128.48,128.47,18.64121385]
[1725568743323,0.05269072,128.48,128.46,3.8927]
[1725568743723,0.05269072,128.48,128.46,7.69737748]